bitfinex-derivatives/quotes_BTCF0:USTF0_20241223
["timestamp","ask_amount","ask_price","bid_price","bid_amount"]
[1734970125949,0.18069991,93305.0,93285.0,0.3608]
[1734970126248,0.18269991,93305.0,93292.0,1.5]
[1734970126644,0.12904691,93305.0,93292.0,1.5]
[1734970126846,0.12904691,93305.0,93296.0,0.414457]
[1734970126847,0.002,93305.0,93296.0,0.414457]
[1734970127039,0.002,93305.0,93304.0,0.3608]
[1734970127538,0.002,93305.0,93304.0,0.7007]
[1734970127744,0.11780709,93314.0,93313.0,0.053648]
[1734970127940,0.03844104,93340.0,93321.0,0.053643]
[1734970128141,0.03844104,93340.0,93321.0,0.414443]
[1734970128351,0.03844104,93340.0,93321.0,1.8608]
[1734970128861,0.19046441,93344.0,93332.0,0.3608]
[1734970129562,0.19046441,93344.0,93332.0,0.7209]
[1734970129752,0.19046441,93344.0,93343.0,0.414431]
[1734970130052,0.19046441,93344.0,93343.0,1.914431]
[1734970130756,0.053623,93357.0,93345.0,0.053629]
[1734970130953,0.053623,93357.0,93351.0,0.3608]
[1734970131152,0.053619,93363.0,93351.0,0.3608]
[1734970131351,0.053619,93363.0,93351.0,0.30735036]
[1734970131551,0.05362,93361.0,93351.0,0.30735036]
[1734970132062,0.3608,93356.0,93343.0,1.86136]
[1734970132250,0.3608,93356.0,93351.0,0.001]
[1734970132452,0.053623,93357.0,93351.0,0.001]
[1734970132655,0.012,93363.0,93352.0,1.553625]
[1734970132847,0.009,93361.0,93351.0,0.001]
[1734970133159,0.06262,93361.0,93351.0,0.001]
[1734970133354,0.053623,93356.0,93351.0,0.001]
[1734970133562,0.3608,93357.0,93343.0,0.05363]
[1734970133862,0.009,93356.0,93351.0,0.001]
[1734970134258,0.009,93356.0,93343.0,0.00118036]
[1734970134455,0.009,93356.0,93342.0,0.3608]
[1734970134658,0.062623,93356.0,93343.0,0.05363]
[1734970134861,0.053624,93354.0,93342.0,0.3608]
[1734970135160,0.053624,93354.0,93351.0,0.001]
[1734970135658,0.053624,93354.0,93342.0,0.3608]
[1734970135856,0.0521628,93355.0,93343.0,0.001]
[1734970136054,0.05363,93345.0,93343.0,0.001]
[1734970136263,0.053632,93342.0,93328.0,0.03853209]
[1734970136453,0.053635,93335.0,93324.0,0.3608]
[1734970136851,0.3608,93329.0,93315.0,0.3608]
[1734970137050,0.3608,93329.0,93298.0,0.3608]
[1734970137051,0.053647,93315.0,93298.0,0.3608]
[1734970137253,0.414447,93315.0,93296.0,0.25482143]
[1734970137566,0.053657,93297.0,93296.0,0.17885702]
[1734970137861,0.775257,93297.0,93296.0,0.17885702]
[1734970138452,0.775257,93297.0,93272.0,1.50056]
[1734970138453,1.075257,93297.0,93272.0,0.00056]
[1734970138655,0.7216,93273.0,93261.0,0.00160838]
[1734970138852,0.3608,93262.0,93261.0,0.00160838]
[1734970139053,0.3608,93262.0,93250.0,0.04741792]
[1734970139259,0.1326401,93260.0,93237.0,0.3608]
[1734970139463,0.3608,93262.0,93250.0,0.3608]
[1734970139660,0.3608,93262.0,93249.0,0.053686]
[1734970139861,0.3608,93262.0,93251.0,0.3608]
[1734970140059,0.3608,93273.0,93260.0,0.41448]
[1734970140249,0.3608,93273.0,93260.0,0.4934401]
[1734970140458,0.3608,93273.0,93260.0,0.3608]
[1734970140754,0.3608,93273.0,93267.0,0.053676]
[1734970141356,0.3608,93273.0,93261.0,0.001]
[1734970141565,0.414473,93273.0,93261.0,0.001]
[1734970141762,0.3608,93273.0,93260.0,0.3608]
[1734970142064,0.3628,93273.0,93260.0,0.3608]
[1734970142666,0.3608,93273.0,93261.0,0.002]
[1734970143362,0.3608,93273.0,93260.0,0.36303036]
[1734970144266,0.3608,93273.0,93260.0,0.31335036]
[1734970144966,0.3608,93273.0,93260.0,0.31135036]
[1734970145363,0.3608,93273.0,93262.0,0.053679]
[1734970146563,0.3608,93273.0,93260.0,0.31435036]
[1734970146770,0.053673,93272.0,93260.0,0.31435036]
[1734970146968,0.3608,93273.0,93260.0,0.005]
[1734970147170,0.053674,93271.0,93260.0,0.005]
[1734970147368,0.053675,93269.0,93260.0,0.003]
[1734970147570,0.053679,93262.0,93260.0,0.003]
[1734970148077,0.3608,93282.0,93260.0,0.003]
[1734970148274,0.053663,93291.0,93276.0,0.053671]
[1734970148462,0.55080634,93287.0,93271.0,1.8608]
[1734970148667,0.60447134,93287.0,93271.0,1.8608]
[1734970148981,0.3608,93276.0,93271.0,1.5]
[1734970149576,0.3608,93276.0,93267.0,0.053676]
[1734970149776,0.3608,93276.0,93268.0,0.053675]
[1734970149976,0.3608,93276.0,93263.0,0.3608]
[1734970150176,0.3608,93287.0,93278.0,0.05367]
[1734970150177,0.3648,93287.0,93278.0,0.05367]
[1734970150489,0.3648,93287.0,93279.0,1.5]
[1734970151581,0.3648,93287.0,93262.0,0.3608]
[1734970151786,0.3648,93287.0,93267.0,0.053676]
[1734970151972,0.3608,93277.0,93267.0,0.053676]
[1734970152173,0.003,93276.0,93268.0,1.5]
[1734970152681,0.003,93276.0,93268.0,0.053675]
[1734970152996,0.3618,93287.0,93276.0,0.053671]
[1734970153494,0.3618,93287.0,93277.0,1.5]
[1734970153495,0.3608,93287.0,93277.0,1.5]
[1734970153878,0.3608,93287.0,93281.0,0.053668]
[1734970154188,0.414465,93287.0,93277.0,1.50064]
[1734970154372,0.3608,93279.0,93277.0,1.5]
[1734970154571,0.3608,93279.0,93268.0,0.002]
[1734970154791,0.3608,93269.0,93268.0,0.002]
[1734970155177,0.3608,93269.0,93250.0,0.4934401]
[1734970155378,0.3608,93259.0,93257.0,0.05529044]
[1734970155583,0.3608,93259.0,93257.0,0.05394072]
[1734970155781,0.3608,93259.0,93257.0,0.053682]
[1734970156289,0.3608,93259.0,93249.0,0.1326401]
[1734970156489,0.053684,93253.0,93241.0,0.3517]
[1734970156674,0.3608,93249.0,93241.0,0.3517]
[1734970157189,0.053687,93248.0,93235.0,0.053694]
[1734970157583,0.3608,93240.0,93238.0,0.1326401]
[1734970157786,0.3608,93249.0,93239.0,1.5]
[1734970158084,0.3608,93260.0,93243.0,0.3608]
[1734970158386,0.001,93249.0,93243.0,0.3608]
[1734970158589,0.001,93249.0,93241.0,0.007]
[1734970158893,0.001,93249.0,93243.0,0.05369]
[1734970159490,0.001,93249.0,93242.0,0.05369]
[1734970160791,0.3608,93246.0,93245.0,0.053689]
[1734970160974,0.3608,93246.0,93241.0,0.007]
[1734970161287,0.414488,93246.0,93243.0,0.003]
[1734970161690,0.414488,93246.0,93239.0,0.00056]
[1734970161890,0.3608,93246.0,93233.0,0.41825515]
[1734970162191,0.3608,93234.0,93210.0,0.1326401]
[1734970162381,0.3608,93226.0,93217.0,0.05306249]
[1734970162580,0.3608,93226.0,93218.0,1.5]
[1734970162782,0.3608,93226.0,93218.0,1.50064]
[1734970162982,0.053701,93225.0,93218.0,1.5]
[1734970163287,0.72236,93226.0,93218.0,1.5]
[1734970163487,0.7216,93226.0,93218.0,1.5]
[1734970164088,0.0537,93225.0,93218.0,1.5]
[1734970164291,0.053703,93220.0,93218.0,1.5]
[1734970164488,0.7224,93226.0,93218.0,1.5]
[1734970164789,0.7236,93226.0,93218.0,0.008]
[1734970165185,0.001,93225.0,93218.0,0.3688]
[1734970165385,0.001,93225.0,93224.0,0.053701]
[1734970165692,0.002,93226.0,93224.0,1.553701]
[1734970166289,0.001,93225.0,93224.0,1.553701]
[1734970166682,0.002,93225.0,93224.0,1.553701]
[1734970167394,0.001,93225.0,93224.0,1.553701]
[1734970167593,0.002,93225.0,93224.0,1.560701]
[1734970167795,0.001,93225.0,93224.0,1.560701]
[1734970168694,0.002,93225.0,93224.0,1.560701]
[1734970170894,0.002,93225.0,93224.0,0.060701]
[1734970171798,0.002,93225.0,93224.0,1.560701]
[1734970173802,0.002,93225.0,93224.0,1.5]
[1734970174297,0.002,93225.0,93224.0,1.553701]
[1734970174492,0.002,93225.0,93224.0,1.5]
[1734970174693,0.002,93225.0,93219.0,0.338]
[1734970174899,0.002,93225.0,93224.0,0.053701]
[1734970175293,0.002,93225.0,93224.0,1.553701]
[1734970175898,0.001,93225.0,93224.0,1.553701]
[1734970176301,0.002,93225.0,93224.0,1.553701]
[1734970176694,0.001,93225.0,93224.0,1.553701]
[1734970177002,0.002,93225.0,93224.0,1.506]
[1734970178002,0.002,93225.0,93224.0,1.559701]
[1734970178897,0.0557,93225.0,93224.0,1.506]
[1734970179101,0.0557,93225.0,93224.0,0.006]
[1734970179605,0.053705,93217.0,93201.0,1.5]
[1734970179902,0.053705,93217.0,93200.0,0.15430977]
[1734970180099,0.3608,93218.0,93200.0,0.24282266]
[1734970180289,0.3608,93218.0,93213.0,0.053707]
[1734970180603,0.3608,93218.0,93215.0,0.053705]
[1734970180902,0.3608,93218.0,93215.0,1.553705]
[1734970181202,0.3608,93218.0,93215.0,1.5]
[1734970181401,0.001,93217.0,93215.0,1.5]
[1734970182002,0.3608,93216.0,93215.0,1.5]
[1734970184600,0.15834765,93217.0,93216.0,0.053705]
[1734970185394,0.001,93217.0,93216.0,0.053705]
[1734970185910,0.001,93217.0,93216.0,0.00017181]
[1734970186209,0.001,93217.0,93214.0,0.05356283]
[1734970186210,0.001,93216.0,93214.0,0.05956283]
[1734970186507,0.001,93216.0,93214.0,0.006]
[1734970186708,0.001,93216.0,93215.0,0.053706]
[1734970186913,0.002,93217.0,93216.0,0.005]
[1734970187409,0.001,93217.0,93216.0,0.01672867]
[1734970187611,0.51914765,93221.0,93219.0,0.053703]
[1734970187802,0.51914765,93221.0,93220.0,1.51172867]
[1734970187998,0.15834765,93221.0,93220.0,1.51172867]
[1734970189001,0.15834765,93221.0,93219.0,0.053703]
[1734970189409,0.15934765,93221.0,93219.0,0.053703]
[1734970189712,0.15934765,93221.0,93216.0,0.002]
[1734970189908,0.16034765,93221.0,93220.0,0.002]
[1734970190304,0.16034765,93221.0,93220.0,0.055703]
[1734970190704,0.16034765,93221.0,93220.0,0.053703]
[1734970190905,0.15934765,93221.0,93220.0,0.053703]
[1734970191109,0.05423142,93221.0,93220.0,0.053703]
[1734970192011,0.05423142,93221.0,93219.0,0.002]
[1734970192308,0.05323142,93221.0,93217.0,1.50064]
[1734970192512,0.05423142,93221.0,93220.0,0.005]
[1734970193104,0.05423142,93221.0,93219.0,0.005]
[1734970193712,0.10793442,93221.0,93219.0,0.005]
[1734970193907,0.10693442,93221.0,93208.0,1.5]
[1734970194116,0.10793442,93221.0,93220.0,0.005]
[1734970194310,0.05423142,93221.0,93220.0,0.005]
[1734970195018,0.05423142,93221.0,93215.0,0.053706]
[1734970195513,0.05423142,93221.0,93219.0,0.005]
[1734970195710,0.05323142,93221.0,93219.0,0.005]
[1734970195914,0.05423142,93221.0,93219.0,0.005]
[1734970196213,0.05323142,93221.0,93216.0,0.053705]
[1734970196509,0.05223142,93220.0,93215.0,0.005]
[1734970196716,0.05223142,93220.0,93217.0,0.053705]
[1734970197115,0.05223142,93220.0,93219.0,0.005]
[1734970197617,0.24370651,93220.0,93219.0,0.005]
[1734970197817,0.24370651,93220.0,93219.0,1.505]
[1734970198117,0.24470651,93220.0,93217.0,0.053705]
[1734970198317,0.24370651,93220.0,93210.0,0.08851289]
[1734970198610,0.24570651,93220.0,93215.0,0.053706]
[1734970198815,0.05423142,93220.0,93208.0,0.05371]
[1734970199010,0.053709,93210.0,93209.0,1.5]
[1734970199210,0.3608,93213.0,93200.0,0.1]
[1734970199411,0.3608,93203.0,93200.0,0.1]
[1734970200720,0.053714,93202.0,93200.0,0.1]
[1734970201220,0.053714,93202.0,93200.0,0.04646681]
[1734970201611,0.3618,93203.0,93200.0,0.04646681]
[1734970202010,0.05223142,93201.0,93200.0,0.04646681]
[1734970203615,0.05323142,93201.0,93200.0,0.04646681]
[1734970204214,0.053716,93198.0,93197.0,0.00056]
[1734970204519,0.053716,93198.0,93196.0,0.00160951]
[1734970205317,0.055716,93198.0,93197.0,1.5]
[1734970206118,0.053722,93187.0,93186.0,0.00044]
[1734970206323,0.414522,93187.0,93186.0,0.00044]
[1734970207111,0.414522,93187.0,93175.0,0.3692]
[1734970207311,0.3608,93178.0,93175.0,0.3692]
[1734970207926,0.3608,93178.0,93176.0,1.5]
[1734970208219,0.41479142,93187.0,93176.0,1.5]
[1734970208520,0.001,93178.0,93176.0,1.5]
[1734970208722,0.002,93178.0,93176.0,1.5]
[1734970210122,0.002,93178.0,93177.0,0.414528]
[1734970210426,0.002,93178.0,93177.0,0.3608]
[1734970210721,0.002,93178.0,93177.0,1.8608]
[1734970210921,0.002,93178.0,93177.0,1.5]
[1734970211122,0.001,93178.0,93177.0,1.5]
[1734970212016,0.002,93178.0,93177.0,1.5]
[1734970212219,0.416527,93178.0,93177.0,1.5]
[1734970213327,0.3628,93178.0,93163.0,0.03871594]
[1734970213626,0.3628,93178.0,93151.0,0.36241009]
[1734970213815,0.4150616,93178.0,93151.0,0.36241009]
[1734970214123,0.0542616,93178.0,93176.0,0.053728]
[1734970214423,0.0542616,93178.0,93177.0,2.1896]
[1734970214620,0.0542616,93178.0,93177.0,1.8768]
[1734970215216,0.002,93178.0,93177.0,1.8768]
[1734970215830,0.001,93178.0,93177.0,1.8768]
[1734970216022,0.002,93178.0,93177.0,1.8768]
[1734970216423,0.001,93178.0,93177.0,1.82326681]
[1734970216627,0.002,93178.0,93177.0,1.82326681]
[1734970216830,0.002,93178.0,93177.0,1.86086238]
[1734970218018,0.001,93178.0,93177.0,1.86086238]
[1734970218222,0.09773568,93178.0,93177.0,1.86086238]
[1734970219322,0.09773568,93178.0,93177.0,1.80732919]
[1734970219526,0.002,93178.0,93177.0,1.80732919]
[1734970220027,0.002,93178.0,93177.0,1.86105719]
[1734970220826,0.09773568,93178.0,93177.0,1.80732919]
[1734970221830,0.09773568,93178.0,93177.0,1.86105719]
[1734970222329,0.09773568,93178.0,93177.0,1.807524]
[1734970222529,0.002,93178.0,93177.0,1.807524]
[1734970222731,0.002,93178.0,93177.0,1.59132357]
[1734970223133,0.002,93178.0,93177.0,1.53759557]
[1734970224523,0.15955947,93180.0,93177.0,1.89839557]
[1734970224724,0.3608,93213.0,93196.0,0.053717]
[1734970224923,0.3608,93213.0,93205.0,0.053712]
[1734970225130,0.3608,93213.0,93205.0,1.553712]
[1734970225529,0.3608,93221.0,93205.0,1.553712]
[1734970225530,0.053704,93219.0,93205.0,1.553712]
[1734970225725,0.3608,93221.0,93205.0,1.553712]
[1734970225934,0.053706,93215.0,93205.0,1.5]
[1734970226136,0.053708,93212.0,93205.0,1.553711]
[1734970226331,0.3608,93213.0,93205.0,1.5]
[1734970226643,0.053711,93207.0,93205.0,1.5]
[1734970227323,0.3608,93213.0,93205.0,1.5]
[1734970227523,0.415507,93213.0,93205.0,1.501]
[1734970227743,0.416507,93213.0,93205.0,1.501]
[1734970227926,0.3628,93213.0,93205.0,1.501]
[1734970228336,0.053709,93211.0,93205.0,1.501]
[1734970228639,0.3628,93213.0,93205.0,0.001]
[1734970228938,0.001,93207.0,93205.0,0.001]
[1734970229238,0.054711,93207.0,93205.0,0.001]
[1734970229427,0.3714,93206.0,93205.0,0.001]
[1734970229629,0.052712,93205.0,93187.0,1.5]
[1734970229835,0.3608,93197.0,93188.0,0.0116798]
[1734970230028,0.3608,93197.0,93193.0,0.053718]
[1734970230237,0.3608,93197.0,93194.0,0.0116798]
[1734970230535,0.053718,93195.0,93187.0,1.50056]
[1734970230730,0.052718,93195.0,93188.0,0.01172781]
[1734970230932,0.3608,93197.0,93189.0,0.01172781]
[1734970231139,0.3608,93197.0,93190.0,0.01172781]
[1734970231339,0.3608,93197.0,93191.0,0.01172781]
[1734970231632,0.001,93195.0,93190.0,0.05372]
[1734970231833,0.001,93207.0,93206.0,0.053711]
[1734970232031,0.001,93207.0,93206.0,0.414511]
[1734970232231,0.001,93207.0,93206.0,0.053711]
[1734970232437,0.053706,93216.0,93206.0,1.5]
[1734970232637,0.08851289,93220.0,93206.0,1.5]
[1734970232840,0.12791774,93210.0,93206.0,1.5]
[1734970233635,0.001,93207.0,93206.0,1.5]
[1734970234141,0.001,93207.0,93201.0,0.053714]
[1734970234340,0.001,93207.0,93198.0,0.3673]
[1734970234341,0.053712,93205.0,93198.0,0.3673]
[1734970234538,0.3608,93200.0,93190.0,0.19276359]
[1734970234743,0.3608,93200.0,93191.0,1.5]
[1734970234943,0.3608,93200.0,93191.0,1.55372]
[1734970235144,0.3608,93200.0,93192.0,0.053719]
[1734970235441,0.12776161,93193.0,93192.0,0.053719]
[1734970236745,0.12876161,93193.0,93192.0,0.053719]
[1734970237244,0.12976161,93193.0,93192.0,0.053719]
[1734970237647,0.12976161,93193.0,93191.0,1.5006]
[1734970237842,0.002,93193.0,93191.0,1.5]
[1734970238047,0.002,93193.0,93192.0,0.053719]
[1734970238738,0.002,93193.0,93191.0,1.50056]
[1734970238954,0.3608,93192.0,93191.0,1.5]
[1734970240346,0.3628,93192.0,93191.0,1.5]
[1734970240650,0.002,93192.0,93191.0,0.05372]
[1734970241343,0.05425346,93192.0,93191.0,0.05372]
[1734970241552,0.05425346,93192.0,93191.0,1.55372]
[1734970242136,0.05425346,93192.0,93191.0,1.59235336]
[1734970242435,0.08851289,93230.0,93212.0,0.053707]
[1734970242436,0.053702,93222.0,93212.0,0.053707]
[1734970242768,0.27730581,93217.0,93212.0,0.053707]
[1734970242948,1.009,93237.0,93202.0,0.053713]
[1734970242949,0.08851289,93222.0,93202.0,0.053713]
[1734970243152,0.053712,93206.0,93196.0,0.053717]
[1734970243542,0.053712,93205.0,93197.0,0.01168578]
[1734970243745,0.053712,93205.0,93192.0,0.3733]
[1734970243947,0.3608,93203.0,93192.0,0.3733]
[1734970244249,0.3608,93203.0,93197.0,0.053716]
[1734970244949,0.3608,93203.0,93192.0,0.3733]
[1734970245144,0.053714,93202.0,93192.0,0.3733]
[1734970245348,0.3608,93203.0,93192.0,0.3733]
[1734970245643,0.3608,93203.0,93202.0,0.053714]
[1734970245848,0.001,93205.0,93204.0,0.053712]
[1734970246551,0.001,93206.0,93204.0,0.053712]
[1734970246552,0.19170147,93217.0,93216.0,0.053705]
[1734970246851,0.14135507,93217.0,93216.0,0.3608]
[1734970247152,0.22360081,93231.0,93222.0,0.053701]
[1734970247848,0.3608,93229.0,93222.0,0.053701]
[1734970248049,0.12776211,93223.0,93222.0,0.053701]
[1734970249546,0.00260965,93224.0,93222.0,0.053701]
[1734970249845,0.00260965,93224.0,93217.0,0.3754]
[1734970250351,0.00360965,93224.0,93222.0,0.054701]
[1734970250859,0.001,93223.0,93222.0,0.056701]
[1734970251153,0.001,93223.0,93222.0,0.055701]
[1734970251348,0.12865283,93224.0,93222.0,0.053701]
[1734970251554,0.053684,93255.0,93247.0,0.053688]
[1734970251852,0.053684,93255.0,93253.0,0.053684]
[1734970252048,0.053685,93253.0,93249.0,0.053686]
[1734970252252,0.00160908,93258.0,93250.0,1.5]
[1734970252455,0.00160908,93258.0,93255.0,0.053683]
[1734970252652,0.00160908,93258.0,93257.0,0.053682]
[1734970252858,0.25554379,93273.0,93272.0,0.053673]
[1734970253054,0.14130266,93273.0,93272.0,0.775273]
[1734970253252,0.053675,93269.0,93266.0,0.3608]
[1734970253455,0.19497566,93273.0,93268.0,1.5]
[1734970253653,0.19497566,93273.0,93268.0,1.553675]
[1734970254160,0.3608,93284.0,93268.0,1.553675]
[1734970254161,0.053669,93281.0,93268.0,1.553675]
[1734970254352,0.3608,93284.0,93270.0,0.13287252]
[1734970254549,0.3608,93292.0,93288.0,0.053664]
[1734970254960,0.053663,93289.0,93280.0,0.053668]
[1734970255658,0.3608,93296.0,93280.0,0.09282859]
[1734970255863,0.3608,93296.0,93280.0,0.03916059]
[1734970256057,0.3608,93286.0,93268.0,1.50256]
[1734970256252,0.3608,93276.0,93268.0,0.002]
[1734970256563,0.3608,93276.0,93268.0,0.055675]
[1734970256860,0.3608,93276.0,93268.0,0.053675]
[1734970257455,0.3608,93276.0,93270.0,0.053674]
[1734970258159,0.3608,93276.0,93264.0,0.03849517]
[1734970258160,0.3618,93276.0,93264.0,0.03849517]
[1734970258356,0.3618,93276.0,93260.0,0.13287252]
[1734970258357,0.001,93276.0,93274.0,0.053672]
[1734970258556,0.001,93276.0,93275.0,0.3608]
[1734970259057,0.002,93276.0,93275.0,0.30726681]
[1734970259660,0.3608,93294.0,93275.0,0.30726681]
[1734970259962,0.10160834,93300.0,93298.0,0.053658]
[1734970260156,0.1,93300.0,93298.0,0.053658]
[1734970260465,0.3608,93339.0,93326.0,0.053642]
[1734970260653,0.3608,93339.0,93320.0,0.13287252]
[1734970260858,0.3608,93339.0,93315.0,0.3608]
[1734970260859,0.3608,93321.0,93307.0,0.00160753]
[1734970261159,0.053646,93320.0,93308.0,1.5]
[1734970261358,0.3608,93321.0,93308.0,1.5]
[1734970261961,0.3618,93321.0,93307.0,0.01460753]
[1734970262161,0.415445,93321.0,93307.0,0.01460753]
[1734970262661,0.415445,93321.0,93308.0,0.009]
[1734970263356,0.053652,93310.0,93308.0,0.009]
[1734970263551,0.053652,93310.0,93308.0,0.011]
[1734970263764,0.3608,93309.0,93308.0,0.011]
[1734970263962,0.053665,93287.0,93271.0,0.3608]
[1734970264158,0.053665,93287.0,93263.0,0.3504]
[1734970264466,0.3608,93286.0,93263.0,0.3504]
[1734970264669,0.053678,93264.0,93260.0,0.55420359]
[1734970264967,0.3608,93286.0,93254.0,0.25698211]
[1734970264968,0.3608,93263.0,93254.0,0.25698211]
[1734970265158,0.414483,93255.0,93254.0,0.25698211]
[1734970265359,0.3608,93255.0,93242.0,0.25698211]
[1734970265569,0.414489,93246.0,93242.0,0.25698211]
[1734970265759,0.3608,93246.0,93242.0,0.25698211]
[1734970266171,0.053684,93254.0,93242.0,0.25698211]
[1734970266661,0.3608,93250.0,93237.0,0.053693]
[1734970266960,0.05369,93244.0,93242.0,0.006]
[1734970267359,0.05369,93244.0,93243.0,1.5]
[1734970268067,0.05369,93244.0,93242.0,0.006]
[1734970268366,0.001,93244.0,93242.0,0.006]
[1734970268960,0.001,93244.0,93243.0,1.5]
[1734970269165,0.001,93244.0,93243.0,1.505]
[1734970269658,0.053689,93245.0,93243.0,1.5]
[1734970269860,0.002,93244.0,93243.0,1.5]
[1734970270066,0.05369,93243.0,93242.0,0.006]
[1734970270956,0.053694,93236.0,93235.0,0.00056]
[1734970271156,0.053694,93236.0,93219.0,0.00160908]
[1734970271157,0.053703,93221.0,93219.0,0.00160908]
[1734970272169,0.08685666,93221.0,93219.0,0.00160908]
[1734970272786,0.08785666,93221.0,93219.0,0.01060908]
[1734970273172,0.2046322,93220.0,93203.0,1.5]
[1734970273471,0.414512,93204.0,93200.0,0.1]
[1734970273773,0.3608,93204.0,93200.0,0.1]
[1734970273969,0.053714,93202.0,93200.0,0.04646681]
[1734970274271,0.050714,93202.0,93184.0,0.00160949]
[1734970274477,0.053723,93185.0,93184.0,0.00160949]
[1734970276070,0.054723,93185.0,93184.0,0.00160949]
[1734970276865,0.055723,93185.0,93184.0,0.00160949]
[1734970277075,0.053727,93179.0,93176.0,0.02849276]
[1734970277274,0.053727,93179.0,93178.0,1.5]
[1734970278274,0.05383754,93179.0,93178.0,1.5]
[1734970278674,0.05483754,93179.0,93178.0,1.5]
[1734970279464,0.00111054,93179.0,93178.0,1.5]
[1734970279664,0.001,93185.0,93178.0,1.8]
[1734970279872,0.053726,93180.0,93178.0,1.5]
[1734970280065,0.053726,93180.0,93178.0,1.44646681]
[1734970280266,0.3608,93186.0,93172.0,0.3887385]
[1734970280471,0.053724,93185.0,93172.0,0.3887385]
[1734970280670,0.001,93179.0,93172.0,0.3887385]
[1734970281077,0.054727,93179.0,93178.0,1.5]
[1734970281468,0.053727,93179.0,93178.0,1.5]
[1734970281875,0.053727,93179.0,93178.0,1.501]
[1734970282873,0.053727,93179.0,93178.0,1.5]
[1734970283071,0.415527,93179.0,93153.0,0.36240994]
[1734970283267,0.416527,93179.0,93164.0,0.3608]
[1734970283482,0.053728,93178.0,93165.0,1.5]
[1734970283786,0.053727,93178.0,93165.0,1.5]
[1734970283968,0.053728,93177.0,93165.0,1.5]
[1734970284172,0.053727,93178.0,93165.0,1.5]
[1734970284476,0.002,93179.0,93174.0,0.3608]
[1734970284675,0.001,93179.0,93174.0,0.3608]
[1734970284879,0.001,93178.0,93174.0,0.3608]
[1734970285268,0.03199543,93175.0,93174.0,0.3608]
[1734970286181,0.03199543,93175.0,93174.0,0.30726681]
[1734970287376,0.002,93178.0,93174.0,1.83507124]
[1734970287578,0.05372,93191.0,93183.0,0.053724]
[1734970287796,0.053712,93206.0,93190.0,0.3608]
[1734970287985,0.3616,93208.0,93200.0,0.3608]
[1734970288172,0.3608,93208.0,93200.0,0.3608]
[1734970288474,0.02900419,93209.0,93200.0,0.3608]
[1734970288475,0.053714,93201.0,93200.0,0.3608]
[1734970288779,0.053709,93210.0,93204.0,0.053712]
[1734970289080,0.02886805,93215.0,93209.0,0.3608]
[1734970289282,0.02886805,93215.0,93210.0,1.5]
[1734970289477,0.053709,93211.0,93210.0,1.5]
[1734970291071,0.054709,93211.0,93210.0,1.501]
[1734970291777,0.055709,93211.0,93210.0,1.504]
[1734970292083,0.055709,93211.0,93210.0,0.004]
[1734970292274,0.053709,93209.0,93208.0,0.31126681]
[1734970292475,0.002,93211.0,93200.0,0.3608]
[1734970292676,0.053714,93201.0,93200.0,0.3608]
[1734970293276,0.053714,93201.0,93200.0,0.37258126]
[1734970293784,0.053711,93206.0,93200.0,0.37258126]
[1734970293982,0.053711,93206.0,93200.0,0.3608]
[1734970294278,0.053713,93203.0,93201.0,0.01175924]
[1734970294483,0.053713,93203.0,93202.0,0.01175924]
[1734970294685,0.053713,93203.0,93193.0,0.00056]
[1734970294874,0.053718,93195.0,93194.0,0.01178541]
[1734970295291,0.053719,93193.0,93191.0,0.32105222]
[1734970296479,0.053719,93193.0,93191.0,0.34903299]
[1734970296684,0.055719,93193.0,93191.0,0.34903299]
[1734970297288,0.002,93193.0,93181.0,0.61939185]
[1734970297587,0.053725,93183.0,93181.0,0.64788301]
[1734970297988,0.002,93193.0,93183.0,0.25698211]
[1734970298285,0.002,93193.0,93190.0,0.3608]
[1734970298492,0.002,93193.0,93192.0,0.053719]
[1734970299083,0.002,93193.0,93192.0,1.553719]
[1734970299480,0.02875203,93221.0,93192.0,1.5]
[1734970299681,0.053709,93210.0,93209.0,0.3608]
[1734970300185,0.053705,93217.0,93209.0,0.3608]
[1734970300482,0.053705,93217.0,93211.0,0.053708]
[1734970300686,0.001,93221.0,93212.0,0.3608]
[1734970300888,0.001,93221.0,93220.0,0.3608]
[1734970301282,0.001,93221.0,93220.0,0.30726681]
[1734970302184,0.002,93221.0,93220.0,0.30726681]
[1734970302378,0.001,93221.0,93220.0,0.30726681]
[1734970303294,0.001,93221.0,93220.0,0.30826681]
[1734970303699,0.3608,93266.0,93220.0,0.30826681]
[1734970303888,0.02862465,93255.0,93245.0,0.053688]
[1734970304091,0.053689,93244.0,93240.0,0.3608]
[1734970304597,0.3608,93258.0,93240.0,0.3608]
[1734970304788,0.053682,93256.0,93252.0,0.053685]
[1734970304990,0.053684,93254.0,93240.0,0.3608]
[1734970305193,0.3608,93258.0,93248.0,0.053686]
[1734970305387,0.053686,93249.0,93242.0,0.05369]
[1734970305588,0.053686,93249.0,93244.0,0.053689]
[1734970305891,0.3608,93258.0,93241.0,0.00056]
[1734970306093,0.053691,93242.0,93240.0,0.3608]
[1734970306298,0.053691,93242.0,93228.0,0.25661506]
[1734970306299,0.3608,93241.0,93228.0,0.25661506]
[1734970306484,0.053694,93236.0,93228.0,0.33829984]
[1734970306796,0.3608,93241.0,93234.0,0.053695]
[1734970306982,0.3608,93241.0,93228.0,0.28460184]
[1734970306983,0.05369,93243.0,93228.0,0.02798678]